fUST/lending_fUST_20250602
["ID","MTS","AMOUNT","RATE_DAILY","PERIOD"]
[363794570,1748873466871,-160.0,0.00021599,2]
[363794571,1748873466882,-160.0,0.00021599,2]
[363794572,1748873466892,-58430.02,0.000216,2]
[363794573,1748873466901,-5000.0,0.00021617,2]
[363794574,1748873466911,-500.0,0.00021643,4]
[363794575,1748873466920,-176.56711408,0.00021658,21]
[363794576,1748873466929,-151.0,0.00021699,2]
[363794577,1748873466938,-151.0,0.00021699,2]
[363794578,1748873466947,-151.0,0.00021699,2]
[363794579,1748873466956,-203.170098,0.00021699,2]
[363794580,1748873466965,-203.170098,0.00021699,2]
[363794581,1748873466974,-178.401837,0.00021699,2]
[363794582,1748873466984,-178.401837,0.00021699,2]
[363794583,1748873466993,-501.49966248,0.000217,2]
[363794584,1748873467003,-2712.576526,0.000217,2]
[363794585,1748873467017,-2712.576526,0.000217,2]
[363794586,1748873467027,-206.0,0.000217,2]
[363794587,1748873467038,-11889.7,0.000217,2]
[363794588,1748873467047,-160.0,0.00021715,3]
[363794589,1748873467058,-2126.85439956,0.00021728,5]
[363794590,1748873467067,-471.5,0.00021767,2]
[363794591,1748873467076,-430.0,0.00021767,2]
[363794592,1748873467089,-1226.8,0.00021767,2]
[363794593,1748873467099,-810.65,0.00021767,2]
[363794594,1748873467109,-1842.24,0.00021767,2]
[363794595,1748873467119,-1352.46,0.00021767,2]
[363794596,1748873467129,-3239.8,0.00021767,2]
[363794597,1748873467138,-489.74,0.00021769,2]
[363794598,1748873467150,-457.91,0.00021769,2]
[363794599,1748873467160,-430.0,0.00021769,2]
[363794600,1748873467171,-444.66,0.00021769,2]
[363794601,1748873467180,-534.15,0.00021769,2]
[363794602,1748873467190,-430.0,0.00021769,2]
[363794603,1748873467201,-314.262703,0.00021769,2]
[363794604,1748873467211,-314.262703,0.00021769,2]
[363794605,1748873467222,-267.178213,0.0002177,2]
[363794606,1748873467233,-267.178213,0.0002177,2]
[363794607,1748873467243,-430.0,0.0002177,2]
[363794608,1748873467254,-151.0,0.0002177,2]
[363794609,1748873467268,-2302.75,0.0002177,2]
[363794610,1748873467277,-173.700959,0.0002177,2]
[363794611,1748873467287,-173.700959,0.0002177,2]
[363794612,1748873467296,-501.66,0.0002177,2]
[363794613,1748873467305,-624.44,0.0002177,2]
[363794614,1748873467315,-495.31,0.0002177,2]
[363794615,1748873467325,-509.61,0.0002177,2]
[363794616,1748873467335,-1427.94,0.00021771,2]
[363794617,1748873467346,-606.47,0.00021771,2]
[363794618,1748873467355,-430.0,0.00021771,2]
[363794619,1748873467365,-442.23,0.00021771,2]
[363794620,1748873467376,-609.71,0.00021772,2]
[363794621,1748873467386,-151.0,0.00021792,2]
[363794622,1748873467396,-151.0,0.00021792,2]
[363794623,1748873467406,-151.0,0.00021792,2]
[363794624,1748873467416,-203.170098,0.00021792,2]
[363794625,1748873467426,-203.170098,0.00021792,2]
[363794626,1748873467437,-178.401837,0.00021792,2]
[363794627,1748873467447,-178.401837,0.00021792,2]
[363794628,1748873467457,-500.0,0.0002183,2]
[363794629,1748873467467,-485.466173,0.00021831,2]
[363794630,1748873467476,-485.466173,0.00021831,2]
[363794631,1748873467486,-3600.0,0.00021885,2]
[363794632,1748873467497,-3000.0,0.00021885,2]
[363794633,1748873467516,-933.33,0.000219,2]
[363794634,1748873467527,-2486.34,0.000219,2]
[363794635,1748873467535,-215.683478,0.00021917,2]
[363794636,1748873467544,-215.683478,0.00021917,2]
[363794637,1748873467554,-845.484416,0.00021917,2]
[363794638,1748873467563,-845.484416,0.00021917,2]
[363794639,1748873467573,-500.0,0.00021917,2]
[363794640,1748873467583,-150.0,0.00021918,2]
[363794641,1748873467594,-150.0,0.00021918,2]
[363794642,1748873467606,-1833.0,0.0002193,2]
[363794643,1748873467615,-206.0,0.0002196,2]
[363794644,1748873467625,-2126.85439956,0.00021969,6]
[363794645,1748873467636,-232.91553849,0.00021999,2]
[363794646,1748873467646,-5000.0,0.00022,2]
[363794647,1748873467655,-2000.0,0.00022,2]
[363794648,1748873467666,-215.683478,0.00022,2]
[363794649,1748873467677,-215.683478,0.00022,2]
[363794650,1748873467687,-215.683478,0.00022,2]
[363794651,1748873467697,-215.683478,0.00022,2]
[363794652,1748873467707,-151.0,0.00022,7]
[363794653,1748873467717,-259.144537,0.00022,7]
[363794654,1748873467727,-151.0,0.00022,7]
[363794655,1748873467736,-151.0,0.00022,7]
[363794656,1748873467745,-151.0,0.00022,7]
[363794657,1748873467755,-151.0,0.00022,7]
[363794658,1748873467768,-203.170098,0.00022,7]
[363794659,1748873467777,-203.170098,0.00022,7]
[363794660,1748873467787,-203.170098,0.00022,7]
[363794661,1748873467797,-203.170098,0.00022,7]
[363794662,1748873467807,-845.484416,0.00022,7]
[363794663,1748873467816,-845.484416,0.00022,7]
[363794664,1748873467825,-845.484416,0.00022,7]
[363794665,1748873467835,-845.484416,0.00022,7]
[363794666,1748873467844,-485.466173,0.00022,7]
[363794667,1748873467853,-485.466173,0.00022,7]
[363794668,1748873467863,-485.466173,0.00022,7]
[363794669,1748873467872,-485.466173,0.00022,7]
[363794670,1748873467882,-485.466173,0.00022,7]
[363794671,1748873467891,-485.466173,0.00022,7]
[363794672,1748873467901,-178.401837,0.00022,7]
[363794673,1748873467911,-178.401837,0.00022,7]
[363794674,1748873467920,-178.401837,0.00022,7]
[363794675,1748873467931,-178.401837,0.00022,7]
[363794676,1748873467941,-2414.86,0.00022,2]
[363794677,1748873467951,-10000.0,0.00022,15]
[363794678,1748873467960,-10000.0,0.00022,15]
[363794679,1748873467969,-10000.0,0.00022,15]
[363794680,1748873467980,-7175.98947,0.00022,15]
[363794681,1748873467990,-215.683478,0.00022019,2]
[363794682,1748873468000,-215.683478,0.00022019,2]
[363794683,1748873468010,-845.484416,0.00022019,7]
[363794684,1748873468019,-845.484416,0.00022019,7]
[363794685,1748873468029,-471.5,0.00022041,2]
[363794686,1748873468039,-403.38,0.00022041,2]
[363794687,1748873468049,-1226.8,0.00022041,2]
[363794688,1748873468058,-810.65,0.00022041,2]
[363794689,1748873468067,-1842.24,0.00022041,2]
[363794690,1748873468077,-1352.46,0.00022041,2]
[363794691,1748873468087,-3239.8,0.00022041,2]
[363794692,1748873468096,-489.74,0.00022043,2]
[363794693,1748873468107,-457.91,0.00022043,2]
[363794694,1748873468117,-430.0,0.00022043,2]
[363794695,1748873468127,-444.66,0.00022043,2]
[363794696,1748873468137,-534.15,0.00022043,2]
[363794697,1748873468146,-430.0,0.00022044,2]
[363794698,1748873468156,-2302.75,0.00022044,2]
[363794699,1748873468166,-501.66,0.00022044,2]
[363794700,1748873468176,-624.44,0.00022044,2]
[363794701,1748873468186,-495.31,0.00022044,2]
[363794702,1748873468196,-509.61,0.00022044,2]
[363794703,1748873468206,-1427.94,0.00022045,2]
[363794704,1748873468217,-606.47,0.00022045,2]
[363794705,1748873468233,-430.0,0.00022045,2]
[363794706,1748873468243,-442.23,0.00022045,2]
[363794707,1748873468254,-609.71,0.00022046,2]
[363794708,1748873468268,-12668.79298183,0.000221,7]
[363794709,1748873468278,-163.0986766,0.00022163,2]
[363794710,1748873468288,-572.502888,0.00022163,2]
[363794711,1748873468299,-572.502888,0.00022163,2]
[363794712,1748873468308,-179.800205,0.00022163,2]
[363794713,1748873468319,-176.5287595,0.00022163,2]
[363794714,1748873468328,-158.4581234,0.00022163,2]
[363794715,1748873468338,-844.5555784,0.00022163,2]
[363794716,1748873468349,-153.0,0.00022163,2]
[363794717,1748873468359,-159.5513002,0.00022163,2]
[363794718,1748873468369,-158.5050251,0.00022163,2]
[363794719,1748873468380,-571.6765372,0.00022163,2]
[363794720,1748873468390,-176.5287595,0.00022163,2]
[363794721,1748873468401,-5000.0,0.00022165,2]
[363794722,1748873468410,-500.0,0.00022191,5]
[363794723,1748873468420,-430.12270734,0.00022192,2]
[363794724,1748873468431,-2126.85439956,0.0002221,6]
[363794725,1748873468442,-206.0,0.0002222,2]
[363794726,1748873468452,-471.5,0.00022315,2]
[363794727,1748873468462,-1226.8,0.00022315,2]
[363794728,1748873468471,-810.65,0.00022315,2]
[363794729,1748873468481,-1842.24,0.00022315,2]
[363794730,1748873468493,-1352.46,0.00022315,2]
[363794731,1748873468503,-3239.8,0.00022315,2]
[363794732,1748873468516,-489.74,0.00022316,2]
[363794733,1748873468526,-457.91,0.00022316,2]
[363794734,1748873468535,-430.0,0.00022316,2]
[363794735,1748873468545,-444.66,0.00022316,2]
[363794736,1748873468555,-534.15,0.00022316,2]
[363794737,1748873468564,-430.0,0.00022318,2]
[363794738,1748873468574,-2302.75,0.00022318,2]
[363794739,1748873468585,-501.66,0.00022318,2]
[363794740,1748873468597,-624.44,0.00022318,2]
[363794741,1748873468607,-495.31,0.00022318,2]
[363794742,1748873468618,-509.61,0.00022318,2]
[363794743,1748873468627,-1427.94,0.00022319,2]
[363794744,1748873468639,-606.47,0.00022319,2]
[363794745,1748873468648,-442.23,0.00022319,2]
[363794746,1748873468657,-609.71,0.0002232,2]
[363794747,1748873468668,-1400.0,0.00022321,2]
[363794748,1748873468678,-2200.0,0.00022416,2]
[363794749,1748873468688,-4200.0,0.00022433,2]
[363794750,1748873468698,-3500.0,0.00022433,2]
[363794751,1748873468708,-2126.85439956,0.00022452,7]
[363794752,1748873468718,-500.0,0.00022465,2]
[363794753,1748873468728,-250.0,0.00022466,2]
[363794754,1748873468738,-206.0,0.0002248,2]
[363794755,1748873468748,-2741.13,0.000225,2]
[363794756,1748873468758,-11348.32039638,0.000225,7]
[363794757,1748873468770,-11348.32039638,0.000225,7]
[363794758,1748873468779,-1118.906587,0.00022524,3]
[363794759,1748873468789,-1817.21179137,0.00022557,2]
[363794760,1748873468799,-12184.84,0.00022565,8]
[363794761,1748873468809,-471.5,0.00022589,2]
[363794762,1748873468819,-1226.8,0.00022589,2]
[363794763,1748873468829,-810.65,0.00022589,2]
[363794764,1748873468839,-1842.24,0.00022589,2]
[363794765,1748873468849,-1352.46,0.00022589,2]
[363794766,1748873468859,-3239.8,0.00022589,2]
[363794767,1748873468869,-489.74,0.0002259,2]
[363794768,1748873468879,-457.91,0.0002259,2]
[363794769,1748873468889,-294.62014939,0.0002259,2]
[363794770,1748873468899,-444.66,0.0002259,2]
[363794771,1748873468910,-534.15,0.0002259,2]
[363794772,1748873468920,-2302.75,0.00022592,2]
[363794773,1748873468930,-501.66,0.00022592,2]
[363794774,1748873468940,-624.44,0.00022592,2]
[363794775,1748873468950,-495.31,0.00022592,2]
[363794776,1748873468960,-509.61,0.00022592,2]
[363794777,1748873468970,-1427.94,0.00022593,2]
[363794778,1748873468980,-606.47,0.00022593,2]
[363794779,1748873468990,-609.71,0.00022594,2]
[363794780,1748873469000,-160.0,0.00022599,2]
[363794781,1748873469011,-160.0,0.00022599,2]
[363794782,1748873469020,-58430.02,0.000226,2]
[363794783,1748873469030,-314.262703,0.000226,7]
[363794784,1748873469040,-314.262703,0.000226,7]
[363794785,1748873469049,-396.795622,0.00022603,2]
[363794786,1748873469058,-430.12270735,0.00022668,2]
[363794787,1748873469068,-2126.85439956,0.00022693,7]
[363794788,1748873469078,-151.0,0.000227,7]
[363794789,1748873469088,-152.339554,0.000227,7]
[363794790,1748873469097,-153.454868,0.000227,7]
[363794791,1748873469107,-151.0,0.000227,7]
[363794792,1748873469116,-151.0,0.000227,7]
[363794793,1748873469126,-151.0,0.000227,7]
[363794794,1748873469258,-151.0,0.000227,7]
[363794795,1748873469270,-223.0315306,0.00022711,2]
[363794796,1748873469280,-5000.0,0.00022713,2]
[363794797,1748873469290,-318.24,0.00022739,2]
[363794798,1748873469300,-318.24,0.00022739,2]
[363794799,1748873469310,-318.24,0.00022739,2]
[363794800,1748873469319,-318.24,0.00022739,2]
[363794801,1748873469329,-318.24,0.00022739,2]
[363794802,1748873469339,-318.24,0.00022739,2]
[363794803,1748873469349,-318.24,0.00022739,2]
[363794804,1748873469359,-318.24,0.00022739,2]
[363794805,1748873469368,-318.24,0.00022739,2]
[363794806,1748873469378,-318.24,0.00022739,2]
[363794807,1748873469389,-318.24,0.00022739,2]
[363794808,1748873469398,-318.24,0.00022739,2]
[363794809,1748873469409,-318.24,0.00022739,2]
[363794810,1748873469421,-318.24,0.00022739,2]
[363794811,1748873469431,-318.24,0.00022739,2]
[363794812,1748873469441,-318.24,0.00022739,2]
[363794813,1748873469451,-318.24,0.00022739,2]
[363794814,1748873469460,-318.24,0.00022739,2]
[363794815,1748873469470,-318.24,0.00022739,2]
[363794816,1748873469480,-318.24,0.00022739,2]
[363794817,1748873469489,-318.24,0.00022739,2]
[363794818,1748873469499,-318.24,0.00022739,2]
[363794819,1748873469511,-318.24,0.00022739,2]
[363794820,1748873469521,-500.0,0.00022739,6]
[363794821,1748873469531,-206.0,0.0002274,2]
[363794822,1748873469540,-215.683478,0.000228,2]
[363794823,1748873469550,-215.683478,0.000228,2]
[363794824,1748873469560,-151.0,0.000228,7]
[363794825,1748873469570,-151.0,0.000228,7]
[363794826,1748873469579,-203.170098,0.000228,7]
[363794827,1748873469590,-203.170098,0.000228,7]
[363794828,1748873469602,-845.484416,0.000228,7]
[363794829,1748873469612,-845.484416,0.000228,7]
[363794830,1748873469622,-485.466173,0.000228,7]
[363794831,1748873469633,-485.466173,0.000228,7]
[363794832,1748873469643,-178.401837,0.000228,7]
[363794833,1748873469652,-178.401837,0.000228,7]
[363794834,1748873469662,-11889.7,0.000228,2]
[363794835,1748873469672,-471.5,0.00022863,2]
[363794836,1748873469682,-1227.02607256,0.00022863,2]
[363794837,1748873469692,-810.79,0.00022863,2]
[363794838,1748873469702,-1842.25,0.00022863,2]
[363794839,1748873469712,-1352.62,0.00022863,2]
[363794840,1748873469723,-3239.9924634,0.00022863,2]
[363794841,1748873469732,-489.80743819,0.00022864,2]
[363794842,1748873469742,-457.93,0.00022864,2]
[363794843,1748873469752,-444.82,0.00022864,2]
[363794844,1748873469764,-534.20752687,0.00022864,2]
[363794845,1748873469774,-2302.84,0.00022866,2]
[363794846,1748873469784,-501.82,0.00022866,2]
[363794847,1748873469794,-624.56,0.00022866,2]
[363794848,1748873469804,-495.31,0.00022866,2]
[363794849,1748873469814,-509.66,0.00022866,2]
[363794850,1748873469823,-1428.16,0.00022867,2]
[363794851,1748873469834,-606.50551079,0.00022867,2]
[363794852,1748873469844,-609.9,0.00022868,2]
[363794853,1748873469854,-318.31616841,0.0002287,2]
[363794854,1748873469864,-1977.03782929,0.00022883,2]
[363794855,1748873469874,-2000.0,0.000229,2]
[363794856,1748873469884,-933.33,0.000229,7]
[363794857,1748873469894,-2126.85439956,0.00022934,8]
[363794858,1748873469904,-10359.3816779,0.00022971,2]
[363794859,1748873469914,-2712.576526,0.00022971,2]
[363794860,1748873469925,-2712.576526,0.00022971,2]
[363794861,1748873469935,-4800.0,0.00022981,2]
[363794862,1748873469944,-3008.37283452,0.00022981,2]
[363794863,1748873469955,-160.0,0.00022982,2]
[363794864,1748873469964,-160.0,0.00022982,2]
[363794865,1748873469974,-9310.11639826,0.00022982,3]
[363794866,1748873469984,-111638.6665021,0.00022983,2]
[363794867,1748873469994,-208540.44310808,0.00022983,2]
[363794868,1748873470003,-151.0,0.00022983,7]
[363794869,1748873470015,-267.178213,0.00022983,7]
[363794870,1748873470025,-267.178213,0.00022983,7]
[363794871,1748873470035,-277.238445,0.00022983,7]
[363794872,1748873470044,-151.0,0.00022983,7]
[363794873,1748873470054,-151.0,0.00022983,7]
[363794874,1748873470064,-173.700959,0.00022983,7]
[363794875,1748873470073,-173.700959,0.00022983,7]
[363794876,1748873470083,-151.734754,0.00022983,7]
[363794877,1748873470093,-151.0,0.00022983,7]
[363794878,1748873470103,-314.262703,0.00022983,7]
[363794879,1748873470113,-314.262703,0.00022983,7]
[363794880,1748873470123,-2712.576526,0.00022984,2]
[363794881,1748873470133,-2712.576526,0.00022984,2]
[363794882,1748873470143,-158.5152029,0.00022984,2]
[363794883,1748873470152,-153.0,0.00022984,2]
[363794884,1748873470162,-153.0,0.00022984,2]
[363794885,1748873470172,-176.5287595,0.00022984,2]
[363794886,1748873470182,-153.0,0.00022984,2]
[363794887,1748873470191,-572.502888,0.00022984,2]
[363794888,1748873470201,-153.0,0.00022984,2]
[363794889,1748873470211,-176.5287595,0.00022984,2]
[363794890,1748873470221,-153.0,0.00022984,2]
[363794891,1748873470231,-176.5287595,0.00022984,2]
[363794892,1748873470243,-176.5287595,0.00022984,2]
[363794893,1748873470253,-572.502888,0.00022984,2]
[363794894,1748873470266,-572.502888,0.00022984,2]
[363794895,1748873470276,-176.5287595,0.00022984,2]
[363794896,1748873470285,-572.502888,0.00022984,2]
[363794897,1748873470294,-572.502888,0.00022984,2]
[363794898,1748873470304,-176.5287595,0.00022984,2]
[363794899,1748873470314,-158.5152029,0.00022984,2]
[363794900,1748873470324,-572.502888,0.00022984,2]
[363794901,1748873470334,-176.5287595,0.00022984,2]
[363794902,1748873470344,-175.7820165,0.00022984,2]
[363794903,1748873470354,-572.502888,0.00022984,2]
[363794904,1748873470365,-158.5152029,0.00022984,2]
[363794905,1748873470374,-572.502888,0.00022984,2]
[363794906,1748873470384,-153.0,0.00022984,2]
[363794907,1748873470393,-158.5152029,0.00022984,2]
[363794908,1748873470404,-572.502888,0.00022984,2]
[363794909,1748873470414,-158.5152029,0.00022984,2]
[363794910,1748873470423,-153.0,0.00022984,2]
[363794911,1748873470433,-572.502888,0.00022984,2]
[363794912,1748873470443,-158.5152029,0.00022984,2]
[363794913,1748873470452,-570.437011,0.00022984,2]
[363794914,1748873470462,-158.5152029,0.00022984,2]
[363794915,1748873470471,-153.0,0.00022984,2]
[363794916,1748873470482,-158.5152029,0.00022984,2]
[363794917,1748873470491,-158.5152029,0.00022984,2]
[363794918,1748873470502,-157.9444079,0.00022984,2]
[363794919,1748873470515,-1977.03782924,0.00022986,2]
[363794920,1748873470526,-160.0,0.00022999,2]
[363794921,1748873470536,-160.0,0.00022999,2]
[363794922,1748873470546,-155.372,0.00022999,2]
[363794923,1748873470556,-160.0,0.00022999,2]
[363794924,1748873470566,-286.06316264,0.00022999,2]
[363794925,1748873470576,-77314.66979247,0.00023,20]
[363794926,1748873470586,-1157.45077511,0.00023,7]
[363794927,1748873470599,-43232.11815911,0.00023,3]
[363794928,1748873470609,-20819.88371501,0.00023,7]
[363794929,1748873470619,-504.06,0.00023,3]
[363794930,1748873470631,-500.0,0.00023,3]
[363794931,1748873470641,-500.0,0.00023,3]
[363794932,1748873470651,-500.0,0.00023,2]
[363794933,1748873470660,-500.0,0.00023,3]
[363794934,1748873470672,-500.0,0.00023,3]
[363794935,1748873470682,-4444.52498663,0.00023,5]
[363794936,1748873470692,-24039.03828956,0.00023,5]
[363794937,1748873470702,-22124.0,0.00023,2]
[363794938,1748873470712,-151.0,0.00023,7]
[363794939,1748873470722,-151.0,0.00023,7]
[363794940,1748873470732,-151.0,0.00023,7]
[363794941,1748873470742,-151.0,0.00023,7]
[363794942,1748873470753,-77346.01731175,0.00023,2]
[363794943,1748873470765,-248.1990355,0.00023,2]
[363794944,1748873470774,-20771.59425432,0.00023,2]
[363794945,1748873470784,-3021.81350217,0.00023,2]
[363794946,1748873470794,-151.0,0.00023,7]
[363794947,1748873470804,-152.764042,0.00023,7]
[363794948,1748873470813,-151.0,0.00023,7]
[363794949,1748873470823,-151.0,0.00023,7]
[363794950,1748873470833,-151.0,0.00023,7]
[363794951,1748873470843,-153.28226,0.00023,7]
[363794952,1748873470852,-153.28226,0.00023,7]
[363794953,1748873470862,-153.28226,0.00023,7]
[363794954,1748873470872,-153.28226,0.00023,7]
[363794955,1748873470881,-153.28226,0.00023,7]
[363794956,1748873470891,-151.0,0.00023,7]
[363794957,1748873470901,-151.0,0.00023,7]
[363794958,1748873470911,-151.0,0.00023,7]
[363794959,1748873470921,-186.984444,0.00023,7]
[363794960,1748873470931,-194.84149,0.00023,7]
[363794961,1748873470941,-194.84149,0.00023,7]
[363794962,1748873470951,-194.84149,0.00023,7]
[363794963,1748873470960,-194.84149,0.00023,7]
[363794964,1748873470970,-194.84149,0.00023,7]
[363794965,1748873470980,-194.84149,0.00023,7]
[363794966,1748873470989,-151.0,0.00023,7]
[363794967,1748873470999,-151.0,0.00023,7]
[363794968,1748873471009,-240.295316,0.00023,7]
[363794969,1748873471021,-240.295316,0.00023,7]
[363794970,1748873471031,-240.295316,0.00023,7]
[363794971,1748873471040,-240.295316,0.00023,7]
[363794972,1748873471050,-151.0,0.00023,7]
[363794973,1748873471060,-151.0,0.00023,7]
[363794974,1748873471069,-151.0,0.00023,7]
[363794975,1748873471079,-151.0,0.00023,7]
[363794976,1748873471088,-383.707035,0.00023,7]
[363794977,1748873471098,-383.707035,0.00023,7]
[363794978,1748873471107,-383.707035,0.00023,7]
[363794979,1748873471117,-383.707035,0.00023,7]
[363794980,1748873471129,-152.264403,0.00023,7]
[363794981,1748873471141,-152.264403,0.00023,7]
[363794982,1748873471151,-152.264403,0.00023,7]
[363794983,1748873471161,-152.264403,0.00023,7]
[363794984,1748873471171,-419.159235,0.00023,7]
[363794985,1748873471182,-419.159235,0.00023,7]
[363794986,1748873471193,-419.159235,0.00023,7]
[363794987,1748873471203,-419.159235,0.00023,7]
[363794988,1748873471213,-160.0,0.00023,3]
[363794989,1748873471224,-151.0,0.00023,7]
[363794990,1748873471235,-151.0,0.00023,7]
[363794991,1748873471245,-151.0,0.00023,7]
[363794992,1748873471256,-154.23562,0.00023,7]
[363794993,1748873471268,-215.683478,0.00023,2]
[363794994,1748873471278,-215.683478,0.00023,2]
[363794995,1748873471288,-215.683478,0.00023,2]
[363794996,1748873471298,-215.683478,0.00023,2]
[363794997,1748873471307,-83426.22,0.00023,7]
[363794998,1748873471317,-842.5625,0.00023,3]
[363794999,1748873471327,-151.0,0.00023,7]
[363795000,1748873471337,-151.0,0.00023,7]
[363795002,1748873471346,-267.692125,0.00023,7]
[363795003,1748873471356,-203.170098,0.00023,7]
[363795004,1748873471366,-203.170098,0.00023,7]
[363795005,1748873471376,-203.170098,0.00023,7]
[363795006,1748873471385,-203.170098,0.00023,7]
[363795007,1748873471395,-845.484416,0.00023,7]
[363795008,1748873471404,-845.484416,0.00023,7]
[363795009,1748873471414,-845.484416,0.00023,7]
[363795010,1748873471424,-845.484416,0.00023,7]
[363795011,1748873471434,-485.466173,0.00023,7]
[363795012,1748873471444,-485.466173,0.00023,7]
[363795013,1748873471454,-485.466173,0.00023,7]
[363795014,1748873471463,-485.466173,0.00023,7]
[363795015,1748873471474,-212.83419937,0.00023,3]
[363795016,1748873471483,-151.0,0.00023,7]
[363795017,1748873471493,-178.401837,0.00023,7]
[363795018,1748873471503,-178.401837,0.00023,7]
[363795019,1748873471515,-178.401837,0.00023,7]
[363795020,1748873471525,-178.401837,0.00023,7]
[363795021,1748873471534,-2486.34,0.00023,7]
[363795022,1748873471543,-151.0,0.00023,7]
[363795023,1748873471553,-151.0,0.00023,7]
[363795024,1748873471563,-221.155024,0.00023,7]
[363795025,1748873471572,-151.0,0.00023,7]
[363795026,1748873471581,-151.0,0.00023,7]
[363795027,1748873471593,-151.0,0.00023,7]
[363795028,1748873471603,-151.0,0.00023,7]
[363795029,1748873471612,-454.013607,0.00023,7]
[363795030,1748873471622,-454.013607,0.00023,7]
[363795031,1748873471632,-267.178213,0.00023,7]
[363795032,1748873471642,-267.178213,0.00023,7]
[363795033,1748873471652,-160.0,0.00023,3]
[363795034,1748873471661,-423.56953423,0.00023,3]
[363795035,1748873471672,-160.0,0.00023,3]
[363795036,1748873471681,-171.0,0.00023,7]
[363795037,1748873471690,-2712.576526,0.00023,2]
[363795038,1748873471700,-2712.576526,0.00023,2]
[363795039,1748873471710,-206.0,0.00023,2]
[363795040,1748873471719,-151.0,0.00023,7]
[363795041,1748873471728,-151.0,0.00023,7]
[363795042,1748873471738,-173.700959,0.00023,7]
[363795043,1748873471747,-173.700959,0.00023,7]
[363795044,1748873471757,-160.0,0.00023,3]
[363795045,1748873471771,-229.39799938,0.00023,3]
[363795046,1748873471780,-151.0,0.00023,7]
[363795047,1748873471790,-157.028082,0.00023,20]
[363795048,1748873471800,-12668.79298183,0.00023,3]
[363795049,1748873471810,-160.0,0.00023,3]
[363795050,1748873471820,-160.0,0.00023,3]
[363795051,1748873471830,-314.262703,0.00023,7]
[363795052,1748873471841,-314.262703,0.00023,7]
[363795053,1748873471851,-314.262703,0.00023,7]
[363795054,1748873471862,-314.262703,0.00023,7]
[363795055,1748873471872,-153.0,0.00023013,2]
[363795056,1748873471984,-153.0,0.00023013,2]
[363795057,1748873471995,-153.0,0.00023013,2]
[363795058,1748873472006,-153.0,0.00023013,2]
[363795059,1748873472020,-153.0,0.00023013,2]
[363795060,1748873472030,-500.0,0.00023013,2]
[363795061,1748873472040,-350.0,0.00023014,2]
[363795062,1748873472051,-151.0,0.00023068,7]
[363795063,1748873472061,-1977.03782924,0.0002309,2]
[363795064,1748873472071,-151.0,0.00023104,7]
[363795065,1748873472082,-240.295316,0.00023104,7]
[363795066,1748873472093,-240.295316,0.00023104,7]
[363795067,1748873472103,-151.0,0.00023104,7]
[363795068,1748873472113,-383.707035,0.00023104,7]
[363795069,1748873472123,-383.707035,0.00023104,7]
[363795070,1748873472134,-151.0,0.00023104,7]